fUSD/lending_fUSD_20250322
["ID","MTS","AMOUNT","RATE_DAILY","PERIOD"]
[356543667,1742637074128,-1413.44,0.00048219,120]
[356543668,1742637074138,-4235.9,0.00048219,2]
[356543669,1742637074147,-500.0,0.00048219,120]
[356543670,1742637074158,-500.0,0.00048219,120]
[356543671,1742637074168,-500.0,0.00048219,120]
[356543672,1742637074178,-1454.51,0.00048219,120]
[356543673,1742637074187,-500.0,0.00048219,120]
[356543674,1742637074197,-500.0,0.00048219,120]
[356543675,1742637074207,-500.0,0.00048219,120]
[356543676,1742637074217,-970.54,0.00048219,120]
[356543677,1742637074227,-586.12,0.00048219,120]
[356543678,1742637074236,-500.0,0.00048219,120]
[356543679,1742637074246,-635.48,0.00048219,120]
[356543680,1742637074256,-647.73,0.00048219,120]
[356543681,1742637074265,-996.39,0.00048219,120]
[356543682,1742637074274,-1824.31,0.00048219,120]
[356543683,1742637074284,-500.0,0.00048219,120]
[356543684,1742637074293,-833.59,0.00048219,120]
[356543685,1742637074303,-500.0,0.00048219,120]
[356543686,1742637074313,-809.31,0.00048219,120]
[356543687,1742637074322,-2000.27,0.00048219,120]
[356543688,1742637074333,-1128.13,0.00048219,120]
[356543689,1742637074347,-205.85,0.00048219,7]
[356543690,1742637074357,-203.62843891,0.00048219,120]
[356543691,1742637074367,-2750.71,0.00048219,120]
[356543692,1742637074377,-500.0,0.00048219,120]
[356543693,1742637074387,-500.0,0.00048219,120]
[356543694,1742637074397,-972.4,0.00048219,120]
[356543695,1742637074407,-912.87,0.00048219,120]
[356543696,1742637074420,-3375.17,0.00048219,120]
[356543697,1742637074430,-558.47,0.00048219,120]
[356543698,1742637074439,-1367.27,0.00048219,120]
[356543699,1742637074449,-743.38,0.00048219,120]
[356543700,1742637074459,-520.84,0.00048219,120]
[356543701,1742637074468,-500.0,0.00048219,120]
[356543702,1742637074478,-1219.57,0.00048219,120]
[356543703,1742637074487,-500.0,0.00048219,120]
[356543704,1742637074496,-500.0,0.00048219,120]
[356543705,1742637074506,-2818.72,0.00048219,120]
[356543706,1742637074516,-825.87,0.00048219,120]
[356543707,1742637074526,-500.0,0.00048219,120]
[356543708,1742637074535,-635.13,0.00048219,120]
[356543709,1742637074545,-827.5,0.00048219,120]
[356543710,1742637074554,-695.68,0.00048219,120]
[356543711,1742637074563,-666.85,0.00048219,120]
[356543712,1742637074572,-500.0,0.00048219,120]
[356543713,1742637074582,-606.96,0.00048219,120]
[356543714,1742637074591,-500.0,0.00048219,120]
[356543715,1742637074601,-1356.69,0.00048219,7]
[356543716,1742637074611,-1736.83,0.00048219,120]
[356543717,1742637074620,-913.27,0.00048219,120]
[356543718,1742637074630,-599.99,0.00048219,120]
[356543719,1742637074639,-500.0,0.00048219,120]
[356543720,1742637074648,-527.15,0.00048219,120]
[356543721,1742637074660,-500.0,0.00048219,120]
[356543722,1742637074669,-597.23,0.00048219,120]
[356543723,1742637074679,-501.82,0.00048219,120]
[356543724,1742637074688,-1106.0,0.00048219,120]
[356543725,1742637074699,-882.82,0.00048219,120]
[356543726,1742637074709,-500.0,0.00048219,120]
[356543727,1742637074718,-1127.56,0.00048219,120]
[356543728,1742637074727,-1089.93,0.00048219,7]
[356543729,1742637074736,-500.0,0.00048219,120]
[356543730,1742637074745,-502.2,0.00048219,120]
[356543731,1742637074754,-500.0,0.00048219,120]
[356543732,1742637074763,-1068.57,0.00048219,120]
[356543733,1742637074772,-1131.58,0.00048219,120]
[356543734,1742637074781,-529.97,0.00048219,120]
[356543735,1742637074790,-500.0,0.00048219,120]
[356543736,1742637074800,-559.18,0.00048219,120]
[356543737,1742637074809,-500.0,0.00048219,120]
[356543738,1742637074818,-1578.59,0.00048219,120]
[356543739,1742637074828,-5060.41,0.00048219,120]
[356543740,1742637074837,-500.0,0.00048219,120]
[356543741,1742637074847,-500.0,0.00048219,120]
[356543742,1742637074856,-938.19,0.00048219,120]
[356543743,1742637074865,-567.38,0.00048219,120]
[356543744,1742637074873,-617.69,0.00048219,120]
[356543745,1742637074882,-1439.24,0.00048219,120]
[356543746,1742637074892,-1288.21,0.00048219,120]
[356543747,1742637074901,-500.0,0.00048219,120]
[356543748,1742637074911,-3623.73,0.00048219,120]
[356543749,1742637074920,-1914.19,0.00048219,120]
[356543750,1742637074930,-1583.29,0.00048219,120]
[356543751,1742637074940,-500.0,0.00048219,120]
[356543752,1742637074950,-1724.46,0.00048219,120]
[356543753,1742637074961,-2003.91,0.00048219,100]
[356543754,1742637074970,-1585.84,0.00048219,120]
[356543755,1742637074980,-500.0,0.00048219,120]
[356543756,1742637074990,-2253.09,0.00048219,120]
[356543757,1742637075001,-500.0,0.00048219,120]
[356543758,1742637075011,-500.0,0.00048219,120]
[356543759,1742637075021,-645.37,0.00048219,120]
[356543760,1742637075030,-691.36,0.00048219,120]
[356543761,1742637075040,-817.6,0.00048219,120]
[356543762,1742637075052,-523.41,0.00048219,120]
[356543763,1742637075061,-1609.26,0.00048219,120]
[356543764,1742637075071,-1857.45,0.00048219,120]
[356543765,1742637075080,-1181.24,0.00048219,120]
[356543766,1742637075090,-592.73,0.00048219,120]
[356543767,1742637075100,-1111.56,0.00048219,120]
[356543768,1742637075109,-500.0,0.00048219,120]
[356543769,1742637075119,-500.0,0.00048219,120]
[356543770,1742637075129,-1095.08,0.00048219,120]
[356543771,1742637075139,-1041.52,0.00048219,120]
[356543772,1742637075148,-500.0,0.00048219,120]
[356543773,1742637075158,-624.9,0.00048219,120]
[356543774,1742637075168,-796.13,0.00048219,120]
[356543775,1742637075178,-354.27380207,0.00048219,120]
[356543776,1742637075188,-751.81,0.00048219,120]
[356543777,1742637075197,-722.59,0.00048219,120]
[356543778,1742637075208,-500.0,0.00048219,120]
[356543779,1742637075218,-554.28,0.00048219,120]
[356543780,1742637075228,-555.78,0.00048219,120]
[356543781,1742637075239,-500.0,0.00048219,120]
[356543782,1742637075250,-3273.79,0.00048219,120]
[356543783,1742637075259,-2930.96,0.00048219,120]
[356543784,1742637075269,-1052.7,0.00048219,120]
[356543785,1742637075278,-504.22,0.00048219,120]
[356543786,1742637075288,-500.0,0.00048219,120]
[356543787,1742637075298,-1485.55,0.00048219,120]
[356543788,1742637075309,-504.42,0.00048219,120]
[356543789,1742637075319,-500.0,0.00048219,120]
[356543790,1742637075329,-1080.77,0.00048219,120]
[356543791,1742637075341,-657.13,0.00048219,120]
[356543792,1742637075351,-500.0,0.00048219,120]
[356543793,1742637075360,-500.0,0.00048219,120]
[356543794,1742637075370,-517.31,0.00048219,120]
[356543795,1742637075379,-760.27,0.00048219,120]
[356543796,1742637075389,-899.53,0.00048219,120]
[356543797,1742637075398,-500.0,0.00048219,120]
[356543798,1742637075408,-500.0,0.00048219,120]
[356543799,1742637075418,-692.39,0.00048219,120]
[356543800,1742637075427,-500.0,0.00048219,120]
[356543801,1742637075437,-555.67,0.00048219,120]
[356543802,1742637075446,-440.92833773,0.00048219,120]
[356543803,1742637075456,-500.0,0.00048219,120]
[356543804,1742637075465,-1026.62,0.00048219,120]
[356543805,1742637075475,-1504.12,0.00048219,120]
[356543806,1742637075485,-655.7,0.00048219,120]
[356543807,1742637075495,-500.0,0.00048219,120]
[356543808,1742637075505,-668.14,0.00048219,120]
[356543809,1742637075515,-500.0,0.00048219,20]
[356543810,1742637075524,-529.96,0.00048219,120]
[356543811,1742637075534,-1785.62,0.00048219,120]
[356543812,1742637075543,-56672.48,0.00048219,120]
[356543813,1742637075553,-500.0,0.00048219,120]
[356543814,1742637075563,-874.3,0.00048219,120]
[356543815,1742637075573,-500.0,0.00048219,120]
[356543816,1742637075583,-892.9,0.00048219,120]
[356543817,1742637075593,-507.98,0.00048219,120]
[356543818,1742637075602,-767.43,0.00048219,120]
[356543819,1742637075611,-818.49,0.00048219,120]
[356543820,1742637075621,-574.58,0.00048219,120]
[356543821,1742637075630,-622.98,0.00048219,120]
[356543822,1742637075641,-1187.99,0.00048219,120]
[356543823,1742637075651,-500.0,0.00048219,120]
[356543824,1742637075660,-594.34,0.00048219,120]
[356543825,1742637075670,-500.0,0.00048219,120]
[356543826,1742637075679,-724.76,0.00048219,120]
[356543827,1742637075690,-500.0,0.00048219,120]
[356543828,1742637075700,-554.79,0.00048219,120]
[356543829,1742637075710,-500.0,0.00048219,120]
[356543830,1742637075721,-864.88,0.00048219,120]
[356543831,1742637075731,-664.62,0.00048219,120]
[356543832,1742637075741,-870.55,0.00048219,120]
[356543833,1742637075750,-500.0,0.00048219,120]
[356543834,1742637075760,-3152.52,0.00048219,120]
[356543835,1742637075770,-1001.37,0.00048219,120]
[356543836,1742637075780,-500.0,0.00048222,120]
[356543837,1742637075790,-219.29507923,0.00048466,32]
[356543838,1742637075800,-504.44725626,0.00048477,60]
[356543839,1742637075811,-150.0,0.00048492,120]
[356543840,1742637075820,-500.0,0.00048492,120]
[356543841,1742637075831,-644.01,0.00048492,120]
[356543842,1742637075841,-644.01,0.00048492,120]
[356543843,1742637075852,-904.785999,0.00048493,120]
[356543844,1742637075863,-733.844647,0.00048493,120]
[356543845,1742637075873,-500.0,0.00048493,120]
[356543846,1742637075883,-500.0,0.00048493,120]
[356543847,1742637075893,-500.0,0.00048493,120]
[356543848,1742637075902,-739.16,0.00048493,120]
[356543849,1742637075914,-500.0,0.00048493,120]
[356543850,1742637075924,-500.0,0.00048493,120]
[356543851,1742637075934,-500.0,0.00048493,120]
[356543852,1742637075944,-500.0,0.00048493,120]
[356543853,1742637075954,-950.82,0.00048493,120]
[356543854,1742637075964,-500.0,0.00048493,120]
[356543855,1742637075974,-517.63,0.00048493,120]
[356543856,1742637075984,-292.68627449,0.00048493,120]
[356543857,1742637075995,-1049.72,0.00048493,120]
[356543858,1742637076006,-653.69,0.00048493,120]
[356543859,1742637076017,-907.89,0.00048493,120]
[356543860,1742637076027,-600.62,0.00048493,120]
[356543861,1742637076038,-500.0,0.00048493,120]
[356543862,1742637076048,-500.0,0.00048493,120]
[356543863,1742637076057,-500.0,0.00048493,120]
[356543864,1742637076067,-500.0,0.00048493,120]
[356543865,1742637076077,-500.0,0.00048493,120]
[356543866,1742637076087,-500.0,0.00048493,120]
[356543867,1742637076096,-500.0,0.00048493,120]
[356543868,1742637076106,-500.0,0.00048493,120]
[356543869,1742637076115,-500.0,0.00048493,120]
[356543870,1742637076125,-500.0,0.00048493,120]
[356543871,1742637076134,-500.0,0.00048493,120]
[356543872,1742637076143,-501.22,0.00048493,120]
[356543873,1742637076152,-251.84540068,0.00048493,120]
[356543874,1742637076164,-500.0,0.00048493,120]
[356543875,1742637076174,-500.0,0.00048493,120]
[356543876,1742637076184,-761.07,0.00048493,120]
[356543877,1742637076193,-956.79,0.00048493,120]
[356543878,1742637076203,-564.90849295,0.00048493,120]
[356543879,1742637076213,-500.0,0.00048493,120]
[356543880,1742637076222,-500.0,0.00048493,120]
[356543881,1742637076232,-963.36,0.00048493,60]
[356543882,1742637076242,-782.21,0.00048493,120]
[356543883,1742637076252,-500.0,0.00048493,120]
[356543884,1742637076262,-584.06,0.00048493,120]
[356543885,1742637076271,-500.0,0.00048493,2]
[356543886,1742637076281,-673.59,0.00048493,120]
[356543887,1742637076291,-502.51,0.00048493,120]
[356543888,1742637076301,-500.0,0.00048493,120]
[356543889,1742637076312,-500.0,0.00048493,120]
[356543890,1742637076322,-1473.31,0.00048493,120]
[356543891,1742637076332,-500.0,0.00048493,120]
[356543892,1742637076347,-500.0,0.00048493,120]
[356543893,1742637076357,-751.46,0.00048493,120]
[356543894,1742637076367,-1642.39,0.00048493,120]
[356543895,1742637076376,-654.04,0.00048493,120]
[356543896,1742637076386,-674.52,0.00048493,120]
[356543897,1742637076396,-520.54,0.00048493,120]
[356543898,1742637076408,-500.0,0.00048493,120]
[356543899,1742637076419,-500.0,0.00048493,120]
[356543900,1742637076431,-781.34,0.00048493,120]
[356543901,1742637076442,-500.0,0.00048493,120]
[356543902,1742637076454,-532.16,0.00048493,120]
[356543903,1742637076464,-568.39926892,0.00048493,120]
[356543904,1742637076475,-500.0,0.00048493,120]
[356543905,1742637076487,-601.78,0.00048493,120]
[356543906,1742637076498,-500.0,0.00048493,120]
[356543907,1742637076509,-691.76,0.00048493,120]
[356543908,1742637076520,-500.0,0.00048493,120]
[356543909,1742637076530,-802.29,0.00048493,120]
[356543910,1742637076542,-500.0,0.00048493,120]
[356543911,1742637076553,-500.0,0.00048493,120]
[356543912,1742637076563,-580.53,0.00048493,120]
[356543913,1742637076574,-2210.41,0.00048493,120]
[356543914,1742637076584,-904.56,0.00048493,120]
[356543915,1742637076595,-500.0,0.00048493,120]
[356543916,1742637076605,-500.0,0.00048493,120]
[356543917,1742637076616,-793.91,0.00048493,120]
[356543918,1742637076627,-706.55,0.00048493,120]
[356543919,1742637076638,-834.3,0.00048493,120]
[356543920,1742637076648,-671.78,0.00048493,120]
[356543921,1742637076659,-500.0,0.00048493,120]
[356543922,1742637076669,-500.0,0.00048493,120]
[356543923,1742637076679,-1807.75,0.00048493,120]
[356543924,1742637076691,-500.0,0.00048493,120]
[356543925,1742637076702,-842.88,0.00048493,120]
[356543926,1742637076713,-500.0,0.00048493,120]
[356543927,1742637076723,-500.0,0.00048493,120]
[356543928,1742637076734,-500.0,0.00048493,120]
[356543929,1742637076744,-350.0,0.00048493,120]
[356543930,1742637076755,-965.16,0.00048493,120]
[356543931,1742637076765,-591.6,0.00048493,120]
[356543932,1742637076776,-1371.05,0.00048493,120]
[356543933,1742637076786,-1325.26,0.00048493,120]
[356543934,1742637076796,-558.56,0.00048493,120]
[356543935,1742637076806,-874.61,0.00048493,120]
[356543936,1742637076817,-902.88,0.00048493,120]
[356543937,1742637076827,-509.55,0.00048493,120]
[356543938,1742637076839,-500.0,0.00048493,120]
[356543939,1742637076850,-500.0,0.00048493,120]
[356543940,1742637076860,-500.0,0.00048493,120]
[356543941,1742637076871,-937.33,0.00048493,120]
[356543942,1742637076881,-500.0,0.00048493,120]
[356543943,1742637076891,-500.0,0.00048493,120]
[356543944,1742637076902,-1062.3,0.00048493,120]
[356543945,1742637076913,-600.78,0.00048493,120]
[356543946,1742637076924,-664.64,0.00048493,120]
[356543947,1742637076935,-668.71,0.00048493,120]
[356543948,1742637076946,-564.64,0.00048493,120]
[356543949,1742637076956,-1070.64,0.00048493,120]
[356543950,1742637076968,-979.48,0.00048493,120]
[356543951,1742637076979,-800.83,0.00048493,120]
[356543952,1742637076989,-500.0,0.00048493,120]
[356543953,1742637077000,-698.39,0.00048493,120]
[356543954,1742637077010,-500.0,0.00048493,120]
[356543955,1742637077021,-680.79,0.00048493,120]
[356543956,1742637077032,-514.68,0.00048493,120]
[356543957,1742637077042,-536.4,0.00048493,120]
[356543958,1742637077052,-500.0,0.00048493,120]
[356543959,1742637077061,-500.0,0.00048493,120]
[356543960,1742637077072,-500.0,0.00048493,120]
[356543961,1742637077082,-500.0,0.00048493,120]
[356543962,1742637077093,-500.0,0.00048493,120]
[356543963,1742637077104,-661.88,0.00048493,120]
[356543964,1742637077115,-339.07547415,0.00048493,120]
[356543965,1742637077125,-500.0,0.00048493,120]
[356543966,1742637077135,-500.0,0.00048493,120]
[356543967,1742637077347,-500.0,0.00048493,120]
[356543968,1742637077359,-730.9,0.00048493,120]
[356543969,1742637077370,-1058.49,0.00048493,120]
[356543970,1742637077381,-500.0,0.00048493,120]
[356543971,1742637077392,-1233.22,0.00048493,120]
[356543972,1742637077403,-1327.63,0.00048493,120]
[356543973,1742637077415,-520.32,0.00048493,120]
[356543974,1742637077426,-896.4,0.00048493,120]
[356543975,1742637077437,-1347.94,0.00048493,120]
[356543976,1742637077447,-597.81,0.00048493,120]
[356543977,1742637077457,-512.86629295,0.00048493,120]
[356543978,1742637077467,-788.73,0.00048493,120]
[356543979,1742637077478,-500.0,0.00048493,120]
[356543980,1742637077489,-500.0,0.00048493,120]
[356543981,1742637077499,-2023.49,0.00048493,120]
[356543982,1742637077509,-625.69,0.00048493,120]
[356543983,1742637077519,-1415.42,0.00048493,120]
[356543984,1742637077529,-556.5,0.00048493,120]
[356543985,1742637077539,-839.81,0.00048493,120]
[356543986,1742637077550,-500.0,0.00048493,120]
[356543987,1742637077560,-952.53796576,0.00048493,120]
[356543988,1742637077570,-813.54,0.00048493,120]
[356543989,1742637077580,-570.18,0.00048493,120]
[356543990,1742637077589,-500.0,0.00048493,120]
[356543991,1742637077599,-500.0,0.00048493,120]
[356543992,1742637077609,-500.0,0.00048493,120]
[356543993,1742637077618,-500.0,0.00048493,120]
[356543994,1742637077628,-621.41,0.00048493,120]
[356543995,1742637077638,-300.0,0.00048493,120]
[356543996,1742637077647,-713.81,0.00048493,120]
[356543997,1742637077656,-500.0,0.00048493,120]
[356543998,1742637077667,-500.0,0.00048493,120]
[356543999,1742637077676,-1159.44,0.00048493,10]
[356544000,1742637077686,-639.03,0.00048493,120]
[356544001,1742637077695,-500.0,0.00048493,120]
[356544002,1742637077704,-521.66,0.00048493,120]
[356544003,1742637077714,-1837.38,0.00048493,120]
[356544004,1742637077723,-500.0,0.00048493,120]
[356544005,1742637077732,-500.0,0.00048493,120]
[356544006,1742637077741,-500.0,0.00048493,120]
[356544007,1742637077751,-500.0,0.00048493,120]
[356544008,1742637077760,-500.0,0.00048493,120]
[356544009,1742637077769,-500.0,0.00048493,120]
[356544010,1742637077778,-500.0,0.00048493,120]
[356544011,1742637077787,-872.68,0.00048493,120]
[356544012,1742637077796,-500.0,0.00048493,120]
[356544013,1742637077806,-500.0,0.00048493,120]
[356544014,1742637077815,-815.59,0.00048493,120]
[356544015,1742637077824,-500.0,0.00048493,120]
[356544016,1742637077836,-564.59,0.00048493,120]
[356544017,1742637077845,-500.0,0.00048493,120]
[356544018,1742637077854,-500.0,0.00048493,120]
[356544019,1742637077863,-500.0,0.00048493,120]
[356544020,1742637077872,-629.6,0.00048493,120]
[356544021,1742637077881,-1219.87,0.00048493,120]
[356544022,1742637077890,-511.1,0.00048493,120]
[356544023,1742637077899,-500.0,0.00048493,120]
[356544024,1742637077908,-500.0,0.00048493,120]
[356544025,1742637077918,-500.0,0.00048493,120]
[356544026,1742637077927,-500.0,0.00048493,120]
[356544027,1742637077936,-973.06,0.00048493,120]
[356544028,1742637077945,-500.0,0.00048493,120]
[356544029,1742637077954,-624.39,0.00048493,120]
[356544030,1742637077963,-500.0,0.00048493,120]
[356544031,1742637077972,-1923.34,0.00048493,120]
[356544032,1742637077981,-500.0,0.00048493,120]
[356544033,1742637077991,-820.19,0.00048493,120]
[356544034,1742637078000,-665.21,0.00048493,120]
[356544035,1742637078010,-564.23,0.00048493,120]
[356544036,1742637078019,-500.0,0.00048493,120]
[356544037,1742637078028,-500.0,0.00048493,120]
[356544038,1742637078037,-1241.85,0.00048493,120]
[356544039,1742637078046,-500.0,0.00048493,120]
[356544040,1742637078055,-255.9391441,0.00048493,120]
[356544041,1742637078064,-619.76,0.00048493,120]
[356544042,1742637078073,-500.0,0.00048493,120]
[356544043,1742637078083,-500.0,0.00048493,120]
[356544044,1742637078092,-591.13,0.00048493,120]
[356544045,1742637078101,-500.0,0.00048493,60]
[356544046,1742637078110,-500.0,0.00048493,120]
[356544047,1742637078119,-500.0,0.00048493,120]
[356544048,1742637078128,-611.96,0.00048493,120]
[356544049,1742637078137,-500.0,0.00048493,120]
[356544050,1742637078146,-645.8,0.00048493,120]
[356544051,1742637078156,-529.2,0.00048493,120]
[356544052,1742637078165,-500.0,0.00048493,120]
[356544053,1742637078175,-601.81,0.00048493,120]
[356544054,1742637078184,-641.64,0.00048493,120]
[356544055,1742637078193,-640.55,0.00048493,120]
[356544056,1742637078203,-500.0,0.00048493,120]
[356544057,1742637078212,-500.0,0.00048493,120]
[356544058,1742637078221,-627.71,0.00048493,120]
[356544059,1742637078231,-701.19,0.00048493,120]
[356544060,1742637078240,-1353.99,0.00048493,120]
[356544061,1742637078250,-500.0,0.00048493,120]
[356544062,1742637078259,-500.0,0.00048493,120]
[356544063,1742637078269,-500.0,0.00048493,120]
[356544064,1742637078278,-658.79,0.00048493,120]
[356544065,1742637078287,-500.0,0.00048493,120]
[356544066,1742637078297,-1518.81,0.00048493,120]
[356544067,1742637078306,-1579.16,0.00048493,120]
[356544068,1742637078316,-842.72,0.00048493,120]
[356544069,1742637078325,-500.0,0.00048493,120]
[356544070,1742637078335,-1920.4,0.00048493,120]
[356544071,1742637078348,-500.0,0.00048493,120]
[356544072,1742637078358,-500.0,0.00048493,120]
[356544073,1742637078367,-500.0,0.00048493,120]
[356544074,1742637078376,-5245.81,0.00048493,120]
[356544075,1742637078387,-500.0,0.00048493,120]
[356544076,1742637078397,-2131.02,0.00048493,120]
[356544077,1742637078406,-500.0,0.00048493,120]
[356544078,1742637078417,-983.72,0.00048493,120]
[356544079,1742637078427,-290.1560396,0.00048493,120]
[356544080,1742637078436,-500.0,0.00048493,120]
[356544081,1742637078446,-1445.99,0.00048493,120]
[356544082,1742637078456,-585.87,0.00048493,120]
[356544083,1742637078466,-689.75,0.00048493,120]
[356544084,1742637078475,-500.0,0.00048493,120]
[356544085,1742637078484,-500.0,0.00048493,120]
[356544086,1742637078494,-846.6,0.00048493,120]
[356544087,1742637078503,-587.36,0.00048493,120]
[356544088,1742637078512,-635.78,0.00048493,120]
[356544089,1742637078522,-1413.44,0.00048493,120]
[356544090,1742637078531,-500.0,0.00048493,120]
[356544091,1742637078540,-4235.9,0.00048493,2]
[356544092,1742637078549,-500.0,0.00048493,120]
[356544093,1742637078559,-500.0,0.00048493,120]
[356544094,1742637078567,-1454.51,0.00048493,120]
[356544095,1742637078576,-500.0,0.00048493,120]
[356544096,1742637078585,-500.0,0.00048493,120]
[356544097,1742637078594,-500.0,0.00048493,120]
[356544098,1742637078603,-970.54,0.00048493,120]
[356544099,1742637078613,-586.12,0.00048493,120]
[356544100,1742637078622,-500.0,0.00048493,120]
[356544101,1742637078631,-635.48,0.00048493,120]
[356544102,1742637078641,-647.73,0.00048493,120]
[356544103,1742637078650,-996.39,0.00048493,120]
[356544104,1742637078659,-1824.31,0.00048493,120]
[356544105,1742637078669,-500.0,0.00048493,120]
[356544106,1742637078678,-833.59,0.00048493,120]
[356544107,1742637078688,-500.0,0.00048493,120]
[356544108,1742637078697,-809.31,0.00048493,120]
[356544109,1742637078707,-2000.27,0.00048493,120]
[356544110,1742637078716,-1128.13,0.00048493,120]
[356544111,1742637078726,-205.85,0.00048493,7]
[356544112,1742637078735,-2750.71,0.00048493,120]
[356544113,1742637078744,-500.0,0.00048493,120]
[356544114,1742637078753,-500.0,0.00048493,120]
[356544115,1742637078762,-972.4,0.00048493,120]
[356544116,1742637078772,-912.87,0.00048493,120]
[356544117,1742637078782,-3375.17,0.00048493,120]
[356544118,1742637078791,-558.47,0.00048493,120]
[356544119,1742637078800,-1367.27,0.00048493,120]
[356544120,1742637078809,-743.38,0.00048493,120]
[356544121,1742637078819,-520.84,0.00048493,120]
[356544122,1742637078828,-500.0,0.00048493,120]
[356544123,1742637078837,-1219.57,0.00048493,120]
[356544124,1742637078847,-500.0,0.00048493,120]
[356544125,1742637078856,-2818.72,0.00048493,120]
[356544126,1742637078865,-500.0,0.00048493,120]
[356544127,1742637078874,-825.87,0.00048493,120]
[356544128,1742637078883,-500.0,0.00048493,120]
[356544129,1742637078892,-635.13,0.00048493,120]
[356544130,1742637078902,-827.5,0.00048493,120]
[356544131,1742637078911,-695.68,0.00048493,120]
[356544132,1742637078920,-500.0,0.00048493,120]
[356544133,1742637078929,-666.85,0.00048493,120]
[356544134,1742637078939,-606.96,0.00048493,120]
[356544135,1742637078948,-500.0,0.00048493,120]
[356544136,1742637078958,-1356.69,0.00048493,7]
[356544137,1742637078967,-1736.83,0.00048493,120]
[356544138,1742637078976,-913.27,0.00048493,120]
[356544139,1742637078985,-599.99,0.00048493,120]
[356544140,1742637078994,-500.0,0.00048493,120]
[356544141,1742637079003,-527.15,0.00048493,120]
[356544142,1742637079012,-500.0,0.00048493,120]
[356544143,1742637079023,-597.23,0.00048493,120]
[356544144,1742637079032,-501.82,0.00048493,120]
[356544145,1742637079041,-1106.0,0.00048493,120]
[356544146,1742637079050,-882.82,0.00048493,120]
[356544147,1742637079059,-500.0,0.00048493,120]
[356544148,1742637079069,-1127.56,0.00048493,120]
[356544149,1742637079078,-1089.93,0.00048493,7]
[356544150,1742637079087,-500.0,0.00048493,120]
[356544151,1742637079096,-502.2,0.00048493,120]
[356544152,1742637079105,-500.0,0.00048493,120]
[356544153,1742637079115,-1068.57,0.00048493,120]
[356544154,1742637079124,-1131.58,0.00048493,120]
[356544155,1742637079133,-529.97,0.00048493,120]
[356544156,1742637079143,-500.0,0.00048493,120]
[356544157,1742637079152,-559.18,0.00048493,120]
[356544158,1742637079162,-500.0,0.00048493,120]
[356544159,1742637079171,-1578.59,0.00048493,120]
[356544160,1742637079181,-5060.41,0.00048493,120]
[356544161,1742637079190,-500.0,0.00048493,120]
[356544162,1742637079199,-500.0,0.00048493,120]
[356544163,1742637079209,-938.19,0.00048493,120]
[356544164,1742637079218,-567.38,0.00048493,120]
[356544165,1742637079227,-617.69,0.00048493,120]
[356544166,1742637079237,-1439.24,0.00048493,120]